bitfinex-derivatives/quotes_ETHF0:USTF0_20251213
["timestamp","ask_amount","ask_price","bid_price","bid_amount"]
[1765633888968,0.77,3107.9,3107.8,1.42532793]
[1765633889370,3.2078,3108.4,3107.9,1.4637]
[1765633889570,4.6823,3108.4,3108.3,0.7421]
[1765633890175,1.4745,3107.9,3107.8,1.46652793]
[1765633890467,1.4745,3107.9,3107.8,0.74492793]
[1765633893277,1.4745,3107.9,3107.8,0.00282793]
[1765633893775,1.4745,3107.9,3107.8,0.74492793]
[1765633894173,1.4745,3107.9,3107.8,0.00282793]
[1765633895466,1.4745,3107.9,3107.8,1.46652793]
[1765633897972,1.4745,3107.9,3107.8,0.74492793]
[1765633899576,1.4745,3107.9,3107.8,1.46652793]
[1765633899772,1.4745,3107.9,3107.8,0.00282793]
[1765633900173,1.4745,3107.9,3107.8,0.74492793]
[1765633902073,1.4745,3107.9,3107.8,0.00282793]
[1765633905189,2.53709275,3107.9,3107.8,0.00282793]
[1765633911993,1.4745,3107.9,3107.8,0.00282793]
[1765633915396,1.4745,3107.9,3107.8,1.49032793]
[1765633915787,1.4745,3107.9,3107.8,0.74492793]
[1765633920198,1.4745,3107.9,3107.8,1.49032793]
[1765633920592,1.4745,3107.9,3107.8,0.74492793]
[1765633921492,1.4745,3107.9,3107.8,1.49032793]
[1765633921891,0.7386,3107.9,3107.8,1.49032793]
[1765633923787,0.4367,3108.0,3107.8,0.00282793]
[1765633923996,2.46090981,3108.4,3108.3,0.7454]
[1765633924199,2.46090981,3108.4,3108.3,0.7037]
[1765633924397,1.4929,3108.4,3108.3,0.7037]
[1765633924799,1.4929,3108.4,3108.3,1.4491]
[1765633924994,0.7511,3108.4,3108.3,1.4491]
[1765633925191,0.75589853,3108.9,3108.8,1.4491]
[1765633925387,0.00479853,3108.9,3108.8,2.51164997]
[1765633933101,4.7007,3109.4,3109.3,1.4491]
[1765633933302,4.7007,3109.4,3109.3,2.51164997]
[1765633936804,4.7007,3109.4,3109.3,1.76624997]
[1765633937099,4.7007,3109.4,3109.3,1.06254997]
[1765633937404,1.4929,3109.2,3109.1,1.06254997]
[1765633938306,0.7511,3108.8,3108.7,5.71944997]
[1765633938602,0.7511,3108.8,3108.7,6.78199994]
[1765633938905,1.942,3109.0,3108.9,1.4491]
[1765633939598,3.2078,3109.4,3108.9,2.51164997]
[1765633939801,3.2078,3109.4,3109.3,2.51164997]
[1765633940203,3.9589,3109.4,3109.3,2.51164997]
[1765633940606,4.7007,3109.4,3109.3,2.51164997]
[1765633942208,3.9589,3109.4,3109.3,2.51164997]
[1765633942507,4.678,3109.4,3109.3,2.51164997]
[1765633944312,4.678,3109.4,3109.3,1.4491]
[1765633944610,4.678,3109.4,3109.3,2.51164997]
[1765633945105,4.678,3109.4,3109.3,1.76624997]
[1765633945503,4.678,3109.4,3109.1,1.06254997]
[1765633945709,1.4628,3109.2,3109.1,1.06254997]
[1765633947811,1.4628,3109.2,3109.1,1.77554997]
[1765633949009,1.4628,3109.2,3109.1,1.06254997]
[1765633949316,1.4628,3109.2,3109.1,1.77554997]
[1765633950525,1.4628,3109.2,3109.1,1.77478469]
[1765633954123,1.4628,3108.8,3108.7,3.9208]
[1765633954330,1.4628,3108.8,3108.7,3.2078]
[1765633955233,1.4628,3108.8,3108.7,3.9208]
[1765633957434,1.4628,3108.8,3108.7,4.6743]
[1765633959035,1.4628,3108.8,3108.7,1.4665]
[1765633959528,1.9016,3108.5,3108.4,3.2078]
[1765633959729,1.9016,3108.5,3108.4,5.73608469]
[1765633959930,1.1489,3108.5,3108.4,5.73608469]
[1765633960335,0.4388,3109.0,3108.4,5.73608469]
[1765633960538,1.4628,3108.7,3108.6,2.52828469]
[1765633966937,0.7101,3108.7,3108.6,2.52828469]
[1765633967142,0.4388,3109.0,3108.9,1.4665]
[1765633967337,1.1489,3109.0,3108.9,1.4665]
[1765633967642,1.9016,3109.0,3108.9,1.4665]
[1765633967837,1.9016,3109.0,3108.8,1.06178469]
[1765633968342,0.4388,3109.0,3108.9,0.713]
[1765633968639,0.4388,3109.0,3108.8,1.77478469]
[1765633968839,1.4628,3108.9,3108.8,1.77478469]
[1765633969142,1.4628,3108.9,3108.8,2.52828469]
[1765633969837,3.2078,3109.2,3108.4,3.2078]
[1765633970034,4.6706,3109.2,3109.1,0.713]
[1765633970339,4.6706,3109.2,3109.1,1.4665]
[1765633971440,1.4628,3109.1,3109.0,1.77478469]
[1765633971740,1.4628,3108.9,3108.8,1.4665]
[1765633971931,0.7101,3108.9,3108.8,1.4665]
[1765633973231,0.7101,3109.0,3108.9,1.4665]
[1765633973426,0.7101,3109.0,3108.9,2.52828469]
[1765633974035,3.9179,3109.2,3109.1,0.713]
[1765633974241,4.6706,3109.2,3109.1,1.4665]
[1765633975733,3.2078,3109.2,3109.1,1.4665]
[1765633975945,3.2078,3109.2,3109.1,2.52828469]
[1765633976342,1.1733,3109.5,3109.4,1.4968]
[1765633976639,1.9428,3109.5,3109.4,1.4968]
[1765633977144,1.1733,3109.5,3109.4,1.4968]
[1765633977342,1.1733,3109.5,3109.4,2.55858469]
[1765633977844,4.73327081,3109.7,3109.6,1.4968]
[1765633978544,4.73327081,3109.7,3109.6,0.7228]
[1765633978742,4.73327081,3109.7,3109.1,0.0048247]
[1765633978942,1.9715,3109.5,3109.4,2.55858469]
[1765633980344,4.73327081,3109.7,3109.6,1.4968]
[1765633981943,4.73327081,3109.7,3109.6,2.55858469]
[1765633985848,4.73327081,3109.7,3109.6,1.4968]
[1765633986047,4.73327081,3109.7,3109.6,0.7228]
[1765633987451,4.73327081,3109.7,3109.6,1.4968]
[1765633987943,4.73327081,3109.7,3109.6,0.7228]
[1765633988751,1.52547081,3109.7,3109.6,0.7228]
[1765633989151,1.52547081,3109.7,3109.6,1.4968]
[1765633989652,0.00887081,3109.7,3109.6,2.55831468]
[1765633990451,0.75597081,3109.7,3109.6,2.55831468]
[1765633991845,1.52547081,3109.7,3109.6,2.55831468]
[1765633993050,0.75597081,3109.7,3109.6,2.55831468]
[1765633993352,0.00887081,3109.7,3109.6,2.55831468]
[1765633995243,0.00887081,3109.7,3109.6,1.4968]
[1765633996854,0.00887081,3109.7,3109.6,2.55831468]
[1765634000560,0.96264494,3110.3,3109.6,2.55831468]
[1765634000755,1.5166,3110.3,3110.2,1.4968]
[1765634001663,1.52008905,3110.3,3110.2,1.49949434]
[1765634002261,1.52008905,3110.3,3110.2,0.00269434]
[1765634002456,1.52008905,3110.3,3110.2,0.71539434]
[1765634003251,1.52008905,3110.3,3110.2,0.00269434]
[1765634004162,1.52008905,3110.3,3110.2,0.71539434]
[1765634005165,1.52008905,3110.3,3110.2,1.43869434]
[1765634005653,0.75058905,3110.3,3110.2,1.43869434]
[1765634006057,1.45958905,3110.3,3110.2,1.43869434]
[1765634008165,0.00348905,3110.3,3110.2,1.43869434]
[1765634008361,0.75238905,3110.3,3110.2,1.43869434]
[1765634008856,1.46138905,3110.3,3110.2,0.71539434]
[1765634009268,1.46138905,3110.3,3110.2,1.44589434]
[1765634009870,1.46138905,3110.3,3110.2,0.00269434]
[1765634010061,1.46138905,3110.3,3110.2,0.72139434]
[1765634010257,1.46138905,3110.3,3110.2,0.00269434]
[1765634012256,2.52290373,3110.3,3110.2,0.00269434]
[1765634012870,1.4579,3109.7,3109.6,3.2078]
[1765634013466,1.4579,3109.7,3109.6,3.9265]
[1765634013767,1.4579,3109.7,3109.6,3.92983581]
[1765634014471,1.4579,3109.7,3109.6,3.21113581]
[1765634018561,1.4579,3109.7,3109.6,3.92983581]
[1765634019070,1.4579,3109.7,3109.6,4.66033581]
[1765634020268,1.4579,3109.7,3109.6,3.92983581]
[1765634020467,1.4579,3109.7,3109.6,3.21113581]
[1765634021480,1.4579,3109.7,3109.6,0.72203581]
[1765634024574,1.4579,3109.7,3109.6,0.00333581]
[1765634026476,1.4579,3109.7,3109.6,0.72203581]
[1765634028274,1.4579,3109.7,3109.6,1.45253581]
[1765634029075,0.7489,3109.7,3109.6,1.45253581]
[1765634029475,1.9156,3110.0,3109.9,1.4492]
[1765634029965,1.9156,3110.0,3109.9,0.7187]
[1765634030365,0.7489,3109.7,3109.6,1.45253581]
[1765634030876,1.4579,3109.7,3109.6,0.00333581]
[1765634031375,1.4579,3109.7,3109.6,0.72203581]
[1765634032882,1.4579,3109.7,3109.6,0.00333581]
[1765634033079,1.4579,3109.7,3109.6,0.72203581]
[1765634040482,0.7489,3109.7,3109.6,1.43223581]
[1765634040677,1.8904,3110.0,3109.9,1.4253]
[1765634042285,2.85610993,3110.0,3109.9,1.4253]
[1765634045087,2.85610993,3110.0,3109.9,0.7151]
[1765634045289,1.8904,3110.0,3109.9,0.7151]
[1765634045587,1.8904,3110.0,3109.9,1.4253]
[1765634046885,1.155,3110.0,3109.9,1.4253]
[1765634047489,1.8904,3110.0,3109.9,1.4253]
[1765634048487,1.8904,3110.0,3109.9,0.7151]
[1765634048689,1.4327,3109.7,3109.6,3.21113581]
[1765634048987,1.4327,3109.7,3109.6,3.92623581]
[1765634049191,1.4327,3109.7,3109.6,4.63643581]
[1765634049387,1.4327,3109.7,3109.6,3.92623581]
[1765634053092,1.4327,3109.7,3109.6,4.63643581]
[1765634053291,1.4327,3109.7,3109.6,3.92623581]
[1765634053591,1.4327,3109.7,3109.6,4.63643581]
[1765634056291,2.49410711,3109.7,3109.6,3.21113581]
[1765634056681,3.45937782,3109.7,3109.6,3.21113581]
[1765634057891,3.45988776,3109.7,3109.6,3.20016081]
[1765634058996,3.45988776,3109.7,3109.6,3.20401098]
[1765634062596,3.45988776,3109.7,3109.6,0.00385017]
[1765634063389,2.49461705,3109.7,3109.6,0.00385017]
[1765634063793,3.45988776,3109.7,3109.6,0.00385017]
[1765634063988,2.49461705,3109.7,3109.6,0.00385017]
[1765634064491,3.45988776,3109.7,3109.6,0.00385017]
[1765634064797,2.49461705,3109.7,3109.6,0.00385017]
[1765634065186,3.45988776,3109.7,3109.6,0.00385017]
[1765634065386,2.49461705,3109.7,3109.6,0.00385017]
[1765634065798,3.45988776,3109.7,3109.6,0.00385017]
[1765634065995,2.49461705,3109.7,3109.6,0.00385017]
[1765634066390,3.45988776,3109.7,3109.6,0.00385017]
[1765634066597,2.49461705,3109.7,3109.6,0.00385017]
[1765634066991,3.45988776,3109.7,3109.6,0.00385017]
[1765634067186,2.49461705,3109.7,3109.6,0.00385017]
[1765634067591,3.45988776,3109.7,3109.6,0.00385017]
[1765634067798,2.49461705,3109.7,3109.6,0.00385017]
[1765634068191,3.45988776,3109.7,3109.6,0.00385017]
[1765634068498,2.49461705,3109.7,3109.6,0.00385017]
[1765634068891,3.45988776,3109.7,3109.6,0.00385017]
[1765634069094,2.49461705,3109.7,3109.6,0.00385017]
[1765634069494,3.45988776,3109.7,3109.6,0.00385017]
[1765634069694,2.49461705,3109.7,3109.6,0.00385017]
[1765634070095,3.45988776,3109.7,3109.6,0.00385017]
[1765634070296,2.49461705,3109.7,3109.6,0.00385017]
[1765634070698,3.45988776,3109.7,3109.6,0.00385017]
[1765634071000,2.49461705,3109.7,3109.6,0.00385017]
[1765634071390,3.45988776,3109.7,3109.6,0.00385017]
[1765634071589,2.49461705,3109.7,3109.6,0.00385017]
[1765634071993,3.45988776,3109.7,3109.6,0.00385017]
[1765634072202,2.49461705,3109.7,3109.6,0.00385017]
[1765634072702,3.45988776,3109.7,3109.6,0.00385017]
[1765634072903,2.49461705,3109.7,3109.6,0.00385017]
[1765634073407,3.45988776,3109.7,3109.6,0.00385017]
[1765634073711,3.5565341,3109.7,3109.6,0.00385017]
[1765634073902,1.5255,3109.4,3109.3,3.2078]
[1765634074093,1.5255,3109.2,3109.1,0.0048247]
[1765634074603,2.58741705,3109.2,3109.1,0.0048247]
[1765634074800,2.58741705,3109.2,3109.1,0.00848775]
[1765634084006,1.5255,3108.9,3108.8,2.82704099]
[1765634084310,0.7584,3108.1,3108.0,4.6909]
[1765634085113,1.82338514,3108.1,3108.0,4.6950737]
[1765634085899,3.65240219,3108.1,3108.0,3.2119737]
[1765634090214,3.65240219,3108.1,3108.0,0.0041737]
[1765634090716,2.59048514,3108.1,3108.0,0.0041737]
[1765634092912,3.65240219,3108.1,3108.0,0.0041737]
[1765634093511,1.5255,3107.8,3107.7,0.0048247]
[1765634093715,2.58875488,3107.8,3107.7,0.0048247]
[1765634094511,2.58875488,3107.8,3107.7,0.00839952]
[1765634105925,2.58875212,3107.8,3107.7,0.00839952]
[1765634108927,3.2078,3107.9,3107.8,1.4459]
[1765634109123,1.2163,3108.0,3107.9,1.4459]
[1765634109930,1.9624,3108.0,3107.9,1.4459]
[1765634112424,0.00306809,3108.1,3108.0,1.4459]
[1765634112824,0.7543,3107.8,3107.7,3.94059952]
[1765634113029,0.7543,3107.8,3107.7,4.66209952]
[1765634114331,0.75736809,3108.1,3108.0,1.4459]
[1765634114531,0.00306809,3108.1,3108.0,1.8734]
[1765634114729,0.0048247,3108.4,3108.3,1.4459]
[1765634114931,0.0048247,3108.4,3108.3,2.50915212]
[1765634115330,0.0048247,3108.4,3108.3,1.4459]
[1765634115726,0.00815914,3108.4,3108.3,1.4459]
[1765634118433,4.12880988,3109.1,3109.0,1.4459]
[1765634118730,3.9621,3109.1,3109.0,1.4459]
[1765634118931,4.7082,3109.1,3109.0,1.4459]
[1765634119229,4.71203511,3109.1,3109.0,1.4459]
[1765634120936,0.4289,3109.0,3108.2,3.2078]
[1765634121541,0.4289,3109.0,3108.3,40.8]
[1765634121840,0.4289,3109.0,3108.2,3.2078]
[1765634122243,0.4289,3109.0,3108.2,44.0078]
[1765634122543,1.9293,3109.0,3108.9,0.7244]
[1765634122836,1.9293,3109.0,3108.9,1.4459]
[1765634123039,1.9293,3109.0,3108.9,0.7244]
[1765634126847,1.9293,3109.0,3108.2,44.0078]
[1765634127241,1.9293,3109.0,3108.2,3.2078]
[1765634127444,1.06325212,3108.8,3108.2,3.2078]
[1765634127746,1.06325212,3108.8,3108.2,4.6583]
[1765634128848,2.54035212,3108.8,3108.7,0.7017]
[1765634129245,1.4771,3108.8,3108.7,0.7017]
[1765634130048,1.4771,3108.8,3108.7,1.4505]
[1765634130443,0.7039,3108.8,3108.7,1.4505]
[1765634131543,1.4771,3108.8,3108.7,1.4505]
[1765634132044,1.5021,3108.8,3108.7,1.4505]
[1765634132262,0.7289,3108.8,3108.7,1.4505]
[1765634132555,0.025,3108.8,3108.7,1.4505]
[1765634132739,0.7289,3108.8,3108.7,1.4505]
[1765634133350,1.5021,3108.8,3108.7,1.4505]
[1765634135855,0.025,3108.8,3108.7,1.4505]
[1765634140254,0.7289,3108.8,3108.7,1.4505]
[1765634140457,0.025,3108.8,3108.7,1.4505]
[1765634153953,0.025,3108.8,3108.7,2.5127278]
[1765634164871,0.025,3108.8,3108.7,2.51235964]
[1765634167875,0.025,3108.8,3108.7,2.51236213]
[1765634181085,0.025,3108.8,3108.7,1.4505]
[1765634181289,0.025,3108.8,3108.7,2.51236213]
[1765634184980,0.025,3108.8,3108.7,5.72016213]
[1765634186681,0.00383511,3109.1,3109.0,1.8858]
[1765634186885,0.00383511,3109.1,3109.0,2.94766213]
[1765634192284,0.00383511,3109.1,3109.0,2.52026213]
[1765634193391,0.76533511,3109.1,3109.0,2.52026213]
[1765634193583,0.76533511,3109.1,3109.0,1.4584]
[1765634193584,1.47703511,3109.1,3109.0,1.4584]
[1765634195592,0.00383511,3109.1,3109.0,1.8858]
[1765634195786,0.76533511,3109.1,3109.0,1.4584]
[1765634197189,0.00383511,3109.1,3109.0,1.4584]
[1765634197384,0.00383511,3109.1,3109.0,1.8858]
[1765634197594,0.00383511,3109.1,3109.0,2.94766213]
[1765634201894,0.00383511,3109.1,3109.0,1.8858]
[1765634203192,0.00383511,3109.1,3109.0,5.0936]
[1765634203797,1.47703511,3109.1,3109.0,4.6662]
[1765634204690,1.47703511,3109.1,3109.0,3.9118]
[1765634206602,1.47703511,3109.1,3109.0,4.6662]
[1765634206798,1.47703511,3109.1,3109.0,1.4584]
[1765634207004,1.47703511,3109.1,3109.0,4.6662]
[1765634209500,1.47703511,3109.1,3109.0,1.4584]
[1765634209812,1.47703511,3109.1,3109.0,4.6662]
[1765634211001,2.53887172,3109.1,3109.0,4.6662]
[1765634220829,2.53887172,3109.1,3109.0,1.4584]
[1765634222230,0.00383511,3109.1,3109.0,1.8893]
[1765634229827,0.74173511,3109.1,3109.0,1.4584]
[1765634230330,1.48233511,3109.1,3109.0,1.4584]
[1765634231735,0.74173511,3109.1,3109.0,1.4584]
[1765634232032,1.48233511,3109.1,3109.0,1.4584]
[1765634232837,0.74173511,3109.1,3109.0,1.4584]
[1765634233034,1.48233511,3109.1,3109.0,1.4584]
[1765634233839,0.74173511,3109.1,3109.0,1.4584]
[1765634236738,1.48233511,3109.1,3109.0,1.4584]
[1765634237326,0.74173511,3109.1,3109.0,1.4584]
[1765634237539,0.00383511,3109.1,3109.0,1.4584]
[1765634237738,0.00383511,3109.1,3109.0,1.8893]
[1765634246642,1.48403511,3109.1,3109.0,1.4584]
[1765634247149,0.73203511,3109.1,3109.0,1.4584]
[1765634250249,1.48403511,3109.1,3109.0,1.4584]
[1765634250947,1.48403511,3109.1,3109.0,0.704]
[1765634251350,1.48403511,3109.1,3109.0,1.4353]
[1765634252052,0.73203511,3109.1,3109.0,1.4353]
[1765634252648,0.00383511,3109.1,3109.0,1.4353]
[1765634252953,0.00383511,3109.1,3109.0,1.8646]
[1765634254447,0.00383511,3109.1,3109.0,2.9265939]
[1765634254754,0.00383511,3109.1,3109.0,1.8646]
[1765634256753,0.00383511,3109.1,3109.0,2.9265939]
[1765634265062,0.00383511,3109.1,3109.0,1.8646]
[1765634272877,0.00383511,3109.1,3109.0,2.92628656]
[1765634273567,0.00383511,3109.1,3109.0,43.72628656]
[1765634275767,1.06168656,3109.9,3109.0,42.29098656]
[1765634275968,2.40848508,3109.8,3109.7,0.7083]
[1765634276269,0.7314,3109.5,3109.4,1.4572247]
[1765634276468,1.8965,3109.5,3109.4,1.4572247]
[1765634276660,1.89951609,3109.5,3109.4,1.4572247]
[1765634276862,0.00301609,3109.5,3109.4,1.4572247]
[1765634278675,0.73441609,3109.5,3109.4,1.4572247]
[1765634279373,1.89951609,3109.5,3109.4,1.4572247]
[1765634284875,1.89951609,3109.5,3109.4,0.7131247]
[1765634285176,1.89951609,3109.5,3109.4,1.4572247]
[1765634289774,1.89951609,3109.5,3109.4,0.0048247]
[1765634289975,1.4379,3109.3,3109.2,3.2078]
[1765634290175,2.49985674,3109.3,3109.2,3.9161]
[1765634290980,2.49985674,3109.3,3109.2,4.6602]
[1765634291379,1.4379,3109.3,3109.2,4.6602]
[1765634292776,0.7314,3109.3,3109.2,4.6602]
[1765634294185,1.79335674,3109.4,3109.3,1.4524]
[1765634294770,1.19301609,3109.5,3109.4,1.4524]
[1765634296181,0.00301609,3109.5,3109.4,1.4524]
[1765634300887,0.73441609,3109.5,3109.4,1.4524]
[1765634301186,1.89951609,3109.5,3109.4,1.4524]
[1765634307589,1.89951609,3109.5,3109.4,0.7083]
[1765634307792,1.89951609,3109.5,3109.4,1.4651]
[1765634311995,1.19301609,3109.5,3109.4,1.4651]
[1765634312495,1.96621609,3109.5,3109.4,1.4651]
[1765634313091,0.00301609,3109.5,3109.4,1.4651]
[1765634313296,0.00301609,3109.5,3109.4,2.52677342]
[1765634313497,3.6367,3110.0,3109.9,1.5202]
[1765634313699,4.60811061,3110.0,3109.9,2.58187342]
[1765634313996,6.14981061,3110.0,3109.9,2.58187342]
[1765634314498,6.15299846,3110.0,3109.9,2.58541081]
[1765634315798,2.94519846,3110.0,3109.9,2.58541081]
[1765634316104,1.97378785,3110.0,3109.9,2.58541081]
[1765634316598,2.94458728,3110.0,3109.9,0.00353739]
[1765634316902,1.5417,3109.7,3109.6,3.9712]
[1765634317790,1.5417,3109.7,3109.6,3.97394662]
[1765634317998,2.60337342,3109.7,3109.6,3.21054662]
[1765634319900,2.60337342,3109.7,3109.6,0.00274662]
[1765634323200,2.60337342,3109.7,3109.6,0.76614662]
[1765634325398,2.60337342,3109.7,3109.6,0.00274662]
[1765634326001,2.60337342,3109.7,3109.6,0.76614662]
[1765634327005,2.60337342,3109.7,3109.6,0.00274662]
[1765634327407,1.5417,3109.7,3109.6,0.00274662]
[1765634327708,2.60337342,3109.7,3109.6,0.00274662]
[1765634338617,2.60337342,3109.7,3109.6,0.71264662]
[1765634343424,2.60337342,3109.7,3109.6,0.00274662]
[1765634343721,2.60334657,3109.7,3109.6,0.00274662]
[1765634346124,3.5742492,3109.7,3109.6,0.00274662]
[1765634352021,2.51260263,3109.7,3109.6,0.00274662]
[1765634354830,2.51287384,3109.7,3109.6,0.00274662]
[1765634372342,2.51287384,3109.7,3109.6,0.75424662]
[1765634376345,2.51287384,3109.7,3109.6,0.00274662]
[1765634377344,2.51287384,3109.7,3109.6,0.75424662]
[1765634378447,2.51287384,3109.7,3109.6,0.00274662]
[1765634384253,2.51287384,3109.7,3109.6,0.75424662]
[1765634385151,2.51287384,3109.7,3109.6,0.00274662]
[1765634400763,2.51287384,3109.7,3109.6,0.73114662]
[1765634401068,2.51287384,3109.7,3109.6,4.67964662]
[1765634401365,3.63988785,3110.0,3109.9,1.4691]
[1765634401366,1.14938785,3110.0,3109.9,1.4691]
[1765634401563,3.2078,3110.4,3110.3,1.4691]
[1765634401765,0.4301,3111.0,3110.3,1.4691]
[1765634401766,1.1474,3111.0,3110.9,1.4691]
[1765634401970,0.4301,3111.0,3110.9,5.73848413]
[1765634402166,0.7173,3111.2,3111.1,1.4691]
[1765634402369,1.4839,3111.8,3111.0,0.4253]
[1765634402571,1.4839,3111.3,3111.2,3.9362]
[1765634402865,1.4839,3111.3,3111.2,4.6769]
[1765634404173,1.1411,3111.5,3111.4,1.4691]
[1765634404373,0.72074034,3111.8,3111.7,1.4691]
[1765634404568,0.72074034,3111.8,3111.7,5.73848413]
[1765634404569,0.00344034,3111.8,3111.7,5.73848413]
[1765634404768,0.7173,3112.2,3112.1,1.4691]
[1765634404967,1.9077,3112.5,3112.4,1.4691]
[1765634405161,1.1411,3112.5,3112.4,2.53068413]
[1765634405367,0.4238,3113.0,3112.4,2.53068413]
[1765634405571,3.6316,3113.5,3112.9,1.4691]
[1765634405874,1.4839,3113.1,3113.0,3.2078]
[1765634406174,2.54548413,3113.1,3113.0,0.8859]
[1765634406367,1.4839,3112.6,3112.5,4.3615]
[1765634406675,1.4839,3112.6,3112.5,0.4253]
[1765634406872,1.4839,3112.5,3112.4,0.7332247]
[1765634407073,1.4839,3112.5,3112.4,0.0048247]
[1765634407272,1.4839,3112.5,3112.4,0.00781989]
[1765634410782,1.4839,3111.6,3111.5,3.6292]
[1765634410974,1.4839,3111.6,3111.5,4.3576]
[1765634411175,1.4839,3111.6,3111.5,5.0983]
[1765634411673,0.7173,3111.6,3111.5,5.10101042]
[1765634411876,1.4839,3111.6,3111.5,6.16101609]
[1765634412871,1.4887247,3111.9,3111.8,1.4691]
[1765634413874,1.4887247,3111.9,3111.8,0.7284]
[1765634415582,1.4839,3111.7,3111.6,2.52913353]
[1765634415786,0.7221247,3111.9,3111.8,0.7284]
[1765634415985,0.7221247,3111.9,3111.8,1.4691]
[1765634416280,0.7221247,3111.9,3111.8,0.7284]
[1765634416281,1.4887247,3111.9,3111.8,0.7284]
[1765634416486,1.4887247,3111.9,3111.8,1.4691]
[1765634417082,1.4839,3111.6,3111.5,4.36031042]
[1765634417285,1.4839,3111.6,3111.5,5.10101042]
[1765634417482,1.4839,3111.6,3111.5,4.36031042]
[1765634417980,1.4839,3111.6,3111.5,0.42411042]
[1765634418182,1.4839,3111.6,3111.5,1.89321042]
[1765634419185,0.7173,3111.6,3111.5,1.89321042]
[1765634420290,1.4839,3111.6,3111.5,1.89321042]
[1765634421285,1.4839,3111.6,3111.5,1.15251042]
[1765634421890,1.4839,3111.6,3111.5,1.89321042]
[1765634424891,0.7173,3111.6,3111.5,1.89321042]
[1765634426589,1.4512,3111.6,3111.5,1.89321042]
[1765634427795,1.4512,3111.6,3111.5,1.15251042]
[1765634429888,1.4512,3111.6,3111.5,0.42411042]
[1765634430294,1.4512,3111.6,3111.5,0.00271042]
[1765634430588,2.51123353,3111.6,3111.5,0.44701042]
[1765634430785,2.51123353,3111.6,3111.5,0.00271042]
[1765634432896,2.51123353,3111.6,3111.5,0.44701042]
[1765634433097,2.51123353,3111.6,3111.5,1.17841042]
[1765634435199,3.2078,3111.7,3111.6,1.489]
[1765634435394,5.98801555,3111.7,3111.6,1.489]
[1765634435600,1.5235,3111.6,3111.5,0.44701042]
[1765634435900,1.5235,3111.6,3111.5,0.00271042]
[1765634436288,2.58353353,3111.6,3111.5,0.00271042]
[1765634436494,4.60788341,3111.6,3111.5,0.00271042]
[1765634437293,3.54784988,3111.6,3111.5,0.00271042]
[1765634444506,4.60788341,3111.6,3111.5,0.00271042]
[1765634445412,3.54784988,3111.6,3111.5,0.00271042]
[1765634447906,2.48781635,3111.6,3111.5,0.00271042]
[1765634448710,2.48781635,3111.6,3111.5,0.44701042]
[1765634450713,3.54815189,3111.6,3111.5,0.44701042]
[1765634450907,0.7564,3111.6,3111.5,2.99634596]
[1765634451908,0.7564,3111.6,3111.5,1.93601042]
[1765634452309,1.5235,3111.6,3111.5,1.93601042]
[1765634453716,1.5235,3111.6,3111.5,1.17841042]
[1765634454517,1.5235,3111.6,3111.5,1.93601042]
[1765634457613,0.7564,3111.6,3111.5,1.93601042]
[1765634458122,4.88023859,3111.7,3111.6,1.422]
[1765634459724,1.67243859,3111.7,3111.6,1.422]
[1765634460022,0.7027,3111.7,3111.6,1.422]
[1765634460521,2.39550595,3111.7,3111.6,1.422]
[1765634462728,5.60330595,3111.7,3111.6,1.422]
[1765634466024,5.60330595,3111.7,3111.6,0.7249]
[1765634466725,5.60330595,3111.7,3111.6,1.422]
[1765634467819,4.88030595,3111.7,3111.6,1.422]
[1765634468125,3.2078,3111.7,3111.6,1.422]
[1765634468328,3.9105,3111.7,3111.6,1.422]
[1765634474234,4.6335,3111.7,3111.6,1.422]
[1765634475231,1.4257,3111.6,3111.5,0.44701042]
[1765634476030,1.4257,3111.6,3111.5,1.17191042]
[1765634476233,1.4257,3111.6,3111.5,1.86901042]
[1765634476829,1.4257,3111.6,3111.5,1.17191042]
[1765634478036,1.4257,3111.6,3111.5,1.86901042]
[1765634482438,0.7027,3111.6,3111.5,1.86901042]
[1765634482841,3.2078,3111.8,3111.7,1.422]
[1765634483046,3.9105,3111.8,3111.7,1.422]
[1765634483841,4.6335,3111.8,3111.7,1.422]
[1765634484744,1.438,3111.6,3111.5,1.93481042]
[1765634485449,0.7163,3111.6,3111.5,1.93481042]
[1765634487050,3.9374,3111.8,3111.7,1.4605]
[1765634487251,4.7106,3111.8,3111.7,0.7225]
[1765634488853,4.7106,3111.8,3111.7,1.4605]
[1765634490048,3.9374,3111.8,3111.7,1.4605]
[1765634490239,3.2078,3111.8,3111.7,1.4605]
[1765634490442,3.9374,3111.8,3111.7,1.4605]
[1765634491848,0.0048247,3111.9,3111.8,1.4605]
[1765634496254,3.2078,3112.2,3112.1,1.4605]
[1765634496255,2.87231885,3112.2,3112.1,1.4605]
[1765634496851,3.60191885,3112.2,3112.1,1.4605]
[1765634497444,4.37511885,3112.2,3112.1,1.4605]
[1765634498051,3.60191885,3112.2,3112.1,1.4605]
[1765634498253,4.37511885,3112.2,3112.1,1.4605]
[1765634499856,1.5028,3112.1,3112.0,0.4329]
[1765634500559,4.7106,3112.1,3112.0,1.1554]
[1765634500958,4.7106,3112.1,3112.0,1.8934]
[1765634504059,1.5028,3111.7,3111.6,1.4605]
[1765634504466,0.7296,3111.7,3111.6,1.4605]
[1765634505160,4.26787075,3112.1,3111.6,1.4605]
[1765634505361,4.7106,3112.1,3112.0,1.8934]
[1765634506760,4.7106,3112.1,3112.0,1.1554]
[1765634507156,3.9374,3112.1,3112.0,1.8934]
[1765634507356,4.7106,3112.1,3112.0,1.8934]
[1765634510269,3.2078,3112.1,3112.0,1.8934]
[1765634510668,3.9374,3112.1,3112.0,1.8934]
[1765634511961,4.7106,3112.1,3112.0,0.4329]
[1765634512464,4.7106,3112.1,3112.0,1.1554]
[1765634512667,4.7106,3112.1,3112.0,1.8934]
[1765634512866,3.9374,3112.1,3112.0,1.8934]
[1765634515457,4.7106,3112.1,3112.0,1.8934]
[1765634518168,4.7106,3112.1,3112.0,1.1554]
[1765634519569,4.7106,3112.1,3112.0,1.9166]
[1765634520666,4.7106,3112.1,3112.0,0.4329]
[1765634520974,0.7723,3111.6,3111.5,1.93001042]
[1765634521366,1.529,3111.6,3111.5,0.00271042]
[1765634521571,5.70360533,3111.6,3111.5,0.00271042]
[1765634522267,4.7368,3111.6,3111.5,0.00271042]